[Event "Titled Tuesday Blitz May 30 Late 2023"]
[White "Makridis, Dimitrios"]
[Black "i_like_explosions"]
[WhiteFideId "25864475"]
[WhiteElo "2277"]
[BlackElo "2419"]
[Result "0-1"]
[Round "07"]
[TimeControl "180+2"]
[Date "2023.05.31"]
[WhiteClock "0:00:04"]
[BlackClock "0:00:35"]

1. e4 {[%clk 0:02:58]}  c5 {[%clk 0:02:59]} 2. d4 {[%clk 0:02:57]}  cxd4 {[%clk 0:02:59]} 3. c3 {[%clk 0:02:57]}  dxc3 {[%clk 0:03:00]} 4. Nxc3 {[%clk 0:02:58]}  Nc6 {[%clk 0:03:00]} 5. Nf3 {[%clk 0:02:57]}  e6 {[%clk 0:03:01]} 6. Bc4 {[%clk 0:02:54]}  Bb4 {[%clk 0:03:02]} 7. O-O {[%clk 0:02:53]}  Nge7 {[%clk 0:03:01]} 8. Nd5 {[%clk 0:02:50]}  exd5 {[%clk 0:02:52]} 9. exd5 {[%clk 0:02:51]}  O-O {[%clk 0:02:52]} 10. dxc6 {[%clk 0:02:49]}  dxc6 {[%clk 0:02:50]} 11. Qb3 {[%clk 0:02:49]}  Bc5 {[%clk 0:02:42]} 12. Bg5 {[%clk 0:02:40]}  Qb6 {[%clk 0:02:34]} 13. Qc2 {[%clk 0:02:33]}  Bf5 {[%clk 0:02:32]} 14. Qc3 {[%clk 0:02:33]}  h6 {[%clk 0:02:30]} 15. Bh4 {[%clk 0:02:29]}  Nd5 {[%clk 0:02:26]} 16. Qe5 {[%clk 0:02:27]}  Be6 {[%clk 0:02:24]} 17. Bg3 {[%clk 0:02:24]}  Rad8 {[%clk 0:02:21]} 18. h3 {[%clk 0:02:09]}  Bd6 {[%clk 0:02:20]} 19. Qd4 {[%clk 0:02:03]}  Bxg3 {[%clk 0:02:16]} 20. Qxb6 {[%clk 0:01:55]}  axb6 {[%clk 0:02:15]} 21. Bxd5 {[%clk 0:01:47]}  Bxf2+ {[%clk 0:02:14]} 22. Kxf2 {[%clk 0:01:48]}  Bxd5 {[%clk 0:02:14]} 23. Rfd1 {[%clk 0:01:42]}  Rfe8 {[%clk 0:02:13]} 24. a4 {[%clk 0:01:39]}  Re4 {[%clk 0:02:11]} 25. a5 {[%clk 0:01:39]}  bxa5 {[%clk 0:02:09]} 26. Rxa5 {[%clk 0:01:38]}  Rde8 {[%clk 0:02:10]} 27. Rd2 {[%clk 0:01:37]}  Rb4 {[%clk 0:02:08]} 28. Nd4 {[%clk 0:01:37]}  Re4 {[%clk 0:02:01]} 29. Ne2 {[%clk 0:01:36]}  Re6 {[%clk 0:01:45]} 30. Nc3 {[%clk 0:01:05]}  Rf6+ {[%clk 0:01:31]} 31. Kg1 {[%clk 0:01:05]}  Be6 {[%clk 0:01:29]} 32. Re5 {[%clk 0:01:01]}  Rff4 {[%clk 0:01:27]} 33. Kh2 {[%clk 0:00:59]}  Rfd4 {[%clk 0:01:27]} 34. Rf2 {[%clk 0:00:57]}  Rb3 {[%clk 0:01:22]} 35. Rc5 {[%clk 0:00:54]}  Rdb4 {[%clk 0:01:21]} 36. Nd1 {[%clk 0:00:40]}  Bd5 {[%clk 0:01:14]} 37. Rcc2 {[%clk 0:00:39]}  Be4 {[%clk 0:01:05]} 38. Rcd2 {[%clk 0:00:38]}  Rd3 {[%clk 0:01:05]} 39. Nc3 {[%clk 0:00:35]}  Rxd2 {[%clk 0:01:04]} 40. Rxd2 {[%clk 0:00:36]}  f5 {[%clk 0:00:58]} 41. Kg3 {[%clk 0:00:35]}  g5 {[%clk 0:00:57]} 42. Kf2 {[%clk 0:00:30]}  Kg7 {[%clk 0:00:56]} 43. Ne2 {[%clk 0:00:27]}  Bd5 {[%clk 0:00:56]} 44. Nc3 {[%clk 0:00:26]}  Kf6 {[%clk 0:00:54]} 45. g3 {[%clk 0:00:17]}  Ke5 {[%clk 0:00:52]} 46. Ke3 {[%clk 0:00:17]}  b5 {[%clk 0:00:51]} 47. Ne2 {[%clk 0:00:15]}  f4+ {[%clk 0:00:51]} 48. gxf4+ {[%clk 0:00:16]}  gxf4+ {[%clk 0:00:51]} 49. Kf2 {[%clk 0:00:17]}  Rb3 {[%clk 0:00:51]} 50. Ng1 {[%clk 0:00:16]}  Re3 {[%clk 0:00:50]} 51. b4 {[%clk 0:00:15]}  Rb3 {[%clk 0:00:49]} 52. Re2+ {[%clk 0:00:13]}  Kf5 {[%clk 0:00:48]} 53. Rd2 {[%clk 0:00:13]}  Rxb4 {[%clk 0:00:48]} 54. Ne2 {[%clk 0:00:14]}  Ra4 {[%clk 0:00:47]} 55. Nc3 {[%clk 0:00:14]}  Rb4 {[%clk 0:00:40]} 56. Ke1 {[%clk 0:00:07]}  Ke5 {[%clk 0:00:40]} 57. Kf2 {[%clk 0:00:06]}  Rc4 {[%clk 0:00:40]} 58. Ne2 {[%clk 0:00:06]}  b4 {[%clk 0:00:40]} 59. Rb2 {[%clk 0:00:06]}  Re4 {[%clk 0:00:37]} 60. Ng1 {[%clk 0:00:05]}  b3 {[%clk 0:00:37]} 61. Nf3+ {[%clk 0:00:05]}  Kf5 {[%clk 0:00:37]} 62. Nh4+ {[%clk 0:00:04]}  Kf6 {[%clk 0:00:36]} 63. Nf3 {[%clk 0:00:04]}  Re3 {[%clk 0:00:35]} 64. Ng1 {[%clk 0:00:05]}  c5 {[%clk 0:00:35]} 65. Rc2 {[%clk 0:00:05]}  c4 {[%clk 0:00:35]} 66. Rd2 {[%clk 0:00:05]}  Ke5 {[%clk 0:00:34]} 67. Rb2 {[%clk 0:00:04]}  c3 {[%clk 0:00:34]} 68. Rb1 {[%clk 0:00:04]}  b2 {[%clk 0:00:34]} 69. Ne2 {[%clk 0:00:03]}  Ba2 {[%clk 0:00:33]} 70. Nxc3 {[%clk 0:00:02]}  Bxb1 {[%clk 0:00:33]} 71. Nxb1 {[%clk 0:00:03]}  Ke4 {[%clk 0:00:30]} 72. h4 {[%clk 0:00:03]}  Kd3 {[%clk 0:00:31]} 73. h5 {[%clk 0:00:04]}  Kc2 {[%clk 0:00:31]} 74. Na3+ {[%clk 0:00:01]}  Kc1 {[%clk 0:00:31]} 75. Kf1 {[%clk 0:00:01]}  b1=Q {[%clk 0:00:31]} 76. Nxb1 {[%clk 0:00:01]}  Kxb1 {[%clk 0:00:32]} 77. Kf2 {[%clk 0:00:02]}  Kc2 {[%clk 0:00:33]} 78. Kg2 {[%clk 0:00:02]}  Kd3 {[%clk 0:00:34]} 79. Kf2 {[%clk 0:00:03]}  Ke4 {[%clk 0:00:35]} 80. Kg2 {[%clk 0:00:04]}  f3+ {[%clk 0:00:35]} 81. Kg3 {[%clk 0:00:04]}  Re2 {[%clk 0:00:35]} 82. Kh4 {[%clk 0:00:04]}  Rg2 {[%clk 0:00:34]} 83. Kh3 {[%clk 0:00:04]}  Rg8 {[%clk 0:00:34]} 84. Kh4 {[%clk 0:00:05]}  f2 {[%clk 0:00:35]} 85. Kh3 {[%clk 0:00:04]}  f1=Q+ {[%clk 0:00:35]} 86. Kh4 {[%clk 0:00:04]}  Qh1# {[%clk 0:00:35]} 0-1


[Site "https://www.chess.com"]

[Event "Titled Tuesday Blitz May 30 Late 2023"]
[White "Shapiro, Daniel"]
[Black "Petukhov, Dmitry"]
[WhiteFideId "2001780"]
[BlackFideId "4142748"]
[WhiteElo "2353"]
[BlackElo "2311"]
[Result "1-0"]
[Round "07"]
[TimeControl "180+2"]
[Date "2023.05.31"]
[WhiteClock "0:00:05"]
[BlackClock "0:00:10"]

1. d4 {[%clk 0:03:00]}  Nf6 {[%clk 0:02:59]} 2. c4 {[%clk 0:03:00]}  g6 {[%clk 0:02:59]} 3. Nc3 {[%clk 0:03:00]}  d5 {[%clk 0:02:59]} 4. Qb3 {[%clk 0:03:00]}  dxc4 {[%clk 0:02:59]} 5. Qxc4 {[%clk 0:02:59]}  Bg7 {[%clk 0:03:00]} 6. Nf3 {[%clk 0:02:59]}  a6 {[%clk 0:03:01]} 7. Qa4+ {[%clk 0:02:58]}  Qd7 {[%clk 0:02:59]} 8. Qa3 {[%clk 0:02:53]}  O-O {[%clk 0:02:58]} 9. Bf4 {[%clk 0:02:48]}  Nc6 {[%clk 0:02:58]} 10. e3 {[%clk 0:02:27]}  Nh5 {[%clk 0:02:55]} 11. Bg5 {[%clk 0:02:01]}  e5 {[%clk 0:02:54]} 12. d5 {[%clk 0:01:57]}  Na7 {[%clk 0:02:30]} 13. Be2 {[%clk 0:01:50]}  e4 {[%clk 0:02:11]} 14. Nd2 {[%clk 0:01:35]}  Nf6 {[%clk 0:01:47]} 15. Bxf6 {[%clk 0:01:28]}  Bxf6 {[%clk 0:01:48]} 16. Ndxe4 {[%clk 0:01:28]}  Bg7 {[%clk 0:01:48]} 17. O-O {[%clk 0:01:26]}  Re8 {[%clk 0:01:47]} 18. Qc5 {[%clk 0:01:14]}  b6 {[%clk 0:01:38]} 19. Qc4 {[%clk 0:01:09]}  Bb7 {[%clk 0:01:37]} 20. Rfd1 {[%clk 0:01:05]}  Rad8 {[%clk 0:01:36]} 21. Rac1 {[%clk 0:01:02]}  b5 {[%clk 0:01:23]} 22. Qc5 {[%clk 0:01:00]}  Nc8 {[%clk 0:01:23]} 23. a4 {[%clk 0:00:53]}  bxa4 {[%clk 0:01:21]} 24. Qb4 {[%clk 0:00:49]}  Nb6 {[%clk 0:01:20]} 25. Nc5 {[%clk 0:00:45]}  Qe7 {[%clk 0:01:15]} 26. N3xa4 {[%clk 0:00:35]}  Bxd5 {[%clk 0:00:53]} 27. Nxb6 {[%clk 0:00:23]}  cxb6 {[%clk 0:00:54]} 28. Nxa6 {[%clk 0:00:23]}  Qg5 {[%clk 0:00:49]} 29. Qg4 {[%clk 0:00:18]}  Qxg4 {[%clk 0:00:45]} 30. Bxg4 {[%clk 0:00:18]}  Bxb2 {[%clk 0:00:38]} 31. Rb1 {[%clk 0:00:18]}  Be6 {[%clk 0:00:25]} 32. Rxb2 {[%clk 0:00:12]}  Bxg4 {[%clk 0:00:24]} 33. Rxd8 {[%clk 0:00:10]}  Rxd8 {[%clk 0:00:24]} 34. f3 {[%clk 0:00:11]}  Bc8 {[%clk 0:00:21]} 35. Rxb6 {[%clk 0:00:11]}  Rd1+ {[%clk 0:00:21]} 36. Kf2 {[%clk 0:00:10]}  Kg7 {[%clk 0:00:20]} 37. Nc5 {[%clk 0:00:09]}  Rd2+ {[%clk 0:00:21]} 38. Kg3 {[%clk 0:00:08]}  h5 {[%clk 0:00:20]} 39. Ne4 {[%clk 0:00:08]}  Rc2 {[%clk 0:00:18]} 40. h4 {[%clk 0:00:08]}  Bf5 {[%clk 0:00:17]} 41. Nd6 {[%clk 0:00:07]}  Bd3 {[%clk 0:00:17]} 42. Rb3 {[%clk 0:00:06]}  Bf1 {[%clk 0:00:17]} 43. Rb7 {[%clk 0:00:06]}  Rxg2+ {[%clk 0:00:17]} 44. Kf4 {[%clk 0:00:07]}  Rh2 {[%clk 0:00:17]} 45. Nxf7 {[%clk 0:00:06]}  Kg8 {[%clk 0:00:18]} 46. Ng5 {[%clk 0:00:05]}  Rxh4+ {[%clk 0:00:17]} 47. Ke5 {[%clk 0:00:06]}  Bg2 {[%clk 0:00:16]} 48. Kf6 {[%clk 0:00:06]}  Kh8 {[%clk 0:00:10]} 49. Rb8# {[%clk 0:00:05]} 1-0


[Site "https://www.chess.com"]

[Event "Titled Tuesday Blitz May 30 Late 2023"]
[White "Vovk, Orest"]
[Black "lluiss"]
[WhiteFideId "14113490"]
[WhiteElo "2215"]
[BlackElo "2309"]
[Result "1-0"]
[Round "07"]
[TimeControl "180+2"]
[Date "2023.05.31"]
[WhiteClock "0:00:26"]
[BlackClock "0:00:08"]

1. g4 {[%clk 0:02:59]}  d5 {[%clk 0:02:58]} 2. Bg2 {[%clk 0:02:59]}  c6 {[%clk 0:02:57]} 3. h3 {[%clk 0:02:58]}  e5 {[%clk 0:02:55]} 4. d4 {[%clk 0:02:54]}  e4 {[%clk 0:02:54]} 5. c4 {[%clk 0:02:51]}  Bb4+ {[%clk 0:02:32]} 6. Nc3 {[%clk 0:02:49]}  h5 {[%clk 0:02:18]} 7. Qb3 {[%clk 0:02:35]}  Bxc3+ {[%clk 0:01:59]} 8. bxc3 {[%clk 0:02:33]}  Qb6 {[%clk 0:01:57]} 9. cxd5 {[%clk 0:02:32]}  Qxb3 {[%clk 0:01:57]} 10. axb3 {[%clk 0:02:31]}  cxd5 {[%clk 0:01:57]} 11. g5 {[%clk 0:02:24]}  Nc6 {[%clk 0:01:54]} 12. f3 {[%clk 0:02:17]}  f5 {[%clk 0:01:49]} 13. h4 {[%clk 0:02:12]}  Nge7 {[%clk 0:01:38]} 14. Nh3 {[%clk 0:02:12]}  Ng6 {[%clk 0:01:38]} 15. Nf4 {[%clk 0:02:12]}  Nxf4 {[%clk 0:01:37]} 16. Bxf4 {[%clk 0:02:13]}  O-O {[%clk 0:01:33]} 17. Kd2 {[%clk 0:02:09]}  Be6 {[%clk 0:01:32]} 18. b4 {[%clk 0:02:08]}  a6 {[%clk 0:01:31]} 19. Rhb1 {[%clk 0:02:02]}  Na7 {[%clk 0:01:18]} 20. e3 {[%clk 0:01:55]}  Rac8 {[%clk 0:01:06]} 21. fxe4 {[%clk 0:01:50]}  fxe4 {[%clk 0:01:03]} 22. Bf1 {[%clk 0:01:50]}  Bd7 {[%clk 0:01:02]} 23. g6 {[%clk 0:01:17]}  Bb5 {[%clk 0:00:54]} 24. Bh3 {[%clk 0:01:12]}  Rc6 {[%clk 0:00:48]} 25. Rg1 {[%clk 0:01:09]}  Rcf6 {[%clk 0:00:46]} 26. Rg5 {[%clk 0:01:06]}  Bc4 {[%clk 0:00:44]} 27. Rag1 {[%clk 0:01:00]}  Rxf4 {[%clk 0:00:31]} 28. exf4 {[%clk 0:00:57]}  Rxf4 {[%clk 0:00:31]} 29. Be6+ {[%clk 0:00:57]}  Kf8 {[%clk 0:00:28]} 30. Bxd5 {[%clk 0:00:46]}  Bxd5 {[%clk 0:00:19]} 31. Rxd5 {[%clk 0:00:45]}  Rxh4 {[%clk 0:00:14]} 32. Rf5+ {[%clk 0:00:45]}  Ke7 {[%clk 0:00:13]} 33. Rf7+ {[%clk 0:00:45]}  Kd6 {[%clk 0:00:13]} 34. Rxg7 {[%clk 0:00:44]}  Nb5 {[%clk 0:00:13]} 35. Rg2 {[%clk 0:00:37]}  Kd5 {[%clk 0:00:12]} 36. Rxb7 {[%clk 0:00:28]}  Kc4 {[%clk 0:00:10]} 37. Rxb5 {[%clk 0:00:26]}  axb5 {[%clk 0:00:08]} 38. g7 {[%clk 0:00:26]} 1-0


[Site "https://www.chess.com"]

[Event "Titled Tuesday Blitz May 30 Late 2023"]
[White "Cardozo Munar, Carlos Eduardo"]
[Black "Seletsky, Grigory"]
[WhiteFideId "4409477"]
[BlackFideId "14112191"]
[WhiteElo "2067"]
[BlackElo "2491"]
[Result "1/2-1/2"]
[Round "07"]
[TimeControl "180+2"]
[Date "2023.05.31"]
[WhiteClock "0:00:41"]
[BlackClock "0:00:20"]

1. e4 {[%clk 0:02:57]}  c5 {[%clk 0:02:59]} 2. Nf3 {[%clk 0:02:57]}  d6 {[%clk 0:02:59]} 3. Nc3 {[%clk 0:02:58]}  e5 {[%clk 0:02:55]} 4. Bc4 {[%clk 0:02:58]}  Be7 {[%clk 0:02:55]} 5. h3 {[%clk 0:02:58]}  Nf6 {[%clk 0:02:55]} 6. O-O {[%clk 0:02:59]}  O-O {[%clk 0:02:55]} 7. a3 {[%clk 0:02:56]}  Nc6 {[%clk 0:02:55]} 8. Nd5 {[%clk 0:02:55]}  Ne8 {[%clk 0:02:51]} 9. b4 {[%clk 0:02:55]}  b6 {[%clk 0:02:49]} 10. bxc5 {[%clk 0:02:51]}  bxc5 {[%clk 0:02:48]} 11. c3 {[%clk 0:02:51]}  Be6 {[%clk 0:02:43]} 12. d4 {[%clk 0:02:51]}  cxd4 {[%clk 0:02:40]} 13. cxd4 {[%clk 0:02:51]}  exd4 {[%clk 0:02:38]} 14. Nxd4 {[%clk 0:02:52]}  Nxd4 {[%clk 0:02:38]} 15. Qxd4 {[%clk 0:02:53]}  Rc8 {[%clk 0:02:30]} 16. Bb2 {[%clk 0:02:38]}  Bxd5 {[%clk 0:02:26]} 17. Qxd5 {[%clk 0:02:19]}  Bf6 {[%clk 0:02:26]} 18. Rab1 {[%clk 0:02:12]}  Bxb2 {[%clk 0:02:25]} 19. Rxb2 {[%clk 0:02:13]}  Nf6 {[%clk 0:02:25]} 20. Qd3 {[%clk 0:02:11]}  Re8 {[%clk 0:02:22]} 21. f3 {[%clk 0:02:08]}  Qa5 {[%clk 0:02:22]} 22. Rb5 {[%clk 0:02:01]}  Qc7 {[%clk 0:02:20]} 23. Rc1 {[%clk 0:01:54]}  Kf8 {[%clk 0:02:18]} 24. Rc2 {[%clk 0:01:49]}  Qe7 {[%clk 0:02:08]} 25. Rd2 {[%clk 0:01:36]}  Red8 {[%clk 0:02:07]} 26. Bd5 {[%clk 0:01:31]}  Rc5 {[%clk 0:02:02]} 27. Rxc5 {[%clk 0:01:00]}  dxc5 {[%clk 0:02:02]} 28. Qc4 {[%clk 0:01:01]}  g5 {[%clk 0:01:40]} 29. Rb2 {[%clk 0:01:00]}  Nxd5 {[%clk 0:01:38]} 30. exd5 {[%clk 0:01:00]}  Qe1+ {[%clk 0:01:38]} 31. Qf1 {[%clk 0:00:54]}  Qxf1+ {[%clk 0:01:35]} 32. Kxf1 {[%clk 0:00:54]}  Rxd5 {[%clk 0:01:33]} 33. Rb8+ {[%clk 0:00:54]}  Kg7 {[%clk 0:01:32]} 34. Rb7 {[%clk 0:00:55]}  a5 {[%clk 0:01:27]} 35. Rb5 {[%clk 0:00:55]}  a4 {[%clk 0:01:24]} 36. Ra5 {[%clk 0:00:55]}  Rd4 {[%clk 0:00:52]} 37. Rxc5 {[%clk 0:00:54]}  Rd3 {[%clk 0:00:52]} 38. Ra5 {[%clk 0:00:53]}  Rxa3 {[%clk 0:00:49]} 39. Rxg5+ {[%clk 0:00:53]}  Kf6 {[%clk 0:00:50]} 40. Ra5 {[%clk 0:00:54]}  Ra2 {[%clk 0:00:49]} 41. Kg1 {[%clk 0:00:54]}  a3 {[%clk 0:00:48]} 42. Kh2 {[%clk 0:00:55]}  Ra1 {[%clk 0:00:45]} 43. h4 {[%clk 0:00:51]}  h6 {[%clk 0:00:36]} 44. Kg3 {[%clk 0:00:51]}  a2 {[%clk 0:00:36]} 45. Kf4 {[%clk 0:00:51]}  Ke6 {[%clk 0:00:32]} 46. g4 {[%clk 0:00:51]}  Kf6 {[%clk 0:00:30]} 47. Ra6+ {[%clk 0:00:48]}  Kg7 {[%clk 0:00:30]} 48. Kf5 {[%clk 0:00:48]}  Rf1 {[%clk 0:00:23]} 49. Rxa2 {[%clk 0:00:45]}  Rxf3+ {[%clk 0:00:23]} 50. Ke4 {[%clk 0:00:46]}  Rh3 {[%clk 0:00:23]} 51. h5 {[%clk 0:00:44]}  Rh1 {[%clk 0:00:23]} 52. Ra6 {[%clk 0:00:40]}  Rg1 {[%clk 0:00:21]} 53. Kf4 {[%clk 0:00:40]}  Rf1+ {[%clk 0:00:21]} 54. Ke4 {[%clk 0:00:40]}  Re1+ {[%clk 0:00:20]} 55. Kf4 {[%clk 0:00:40]}  Rf1+ {[%clk 0:00:20]} 56. Ke4 {[%clk 0:00:40]}  Re1+ {[%clk 0:00:20]} 57. Kf4 {[%clk 0:00:41]}  Rf1+ {[%clk 0:00:20]} 1/2-1/2


[Site "https://www.chess.com"]

[Event "Titled Tuesday Blitz May 30 Late 2023"]
[White "Srdanovic, Jovana"]
[Black "Florianovitz, Derlei Alex"]
[WhiteFideId "954810"]
[BlackFideId "2114178"]
[WhiteElo "2169"]
[BlackElo "1953"]
[Result "0-1"]
[Round "07"]
[TimeControl "180+2"]
[Date "2023.05.31"]
[WhiteClock "0:00:13"]
[BlackClock "0:00:33"]

1. d4 {[%clk 0:03:00]}  Nf6 {[%clk 0:02:59]} 2. c4 {[%clk 0:03:00]}  e6 {[%clk 0:02:59]} 3. Nf3 {[%clk 0:03:00]}  d5 {[%clk 0:02:58]} 4. Nc3 {[%clk 0:03:00]}  Be7 {[%clk 0:02:55]} 5. Bg5 {[%clk 0:03:00]}  O-O {[%clk 0:02:55]} 6. e3 {[%clk 0:03:00]}  Nbd7 {[%clk 0:02:55]} 7. cxd5 {[%clk 0:03:00]}  exd5 {[%clk 0:02:55]} 8. Bd3 {[%clk 0:03:01]}  c6 {[%clk 0:02:52]} 9. Qc2 {[%clk 0:03:01]}  Re8 {[%clk 0:02:51]} 10. O-O {[%clk 0:03:01]}  h6 {[%clk 0:02:50]} 11. Bh4 {[%clk 0:03:01]}  Ne4 {[%clk 0:02:47]} 12. Bxe7 {[%clk 0:02:48]}  Qxe7 {[%clk 0:02:46]} 13. Bxe4 {[%clk 0:02:48]}  dxe4 {[%clk 0:02:46]} 14. Nd2 {[%clk 0:02:49]}  Nf6 {[%clk 0:02:42]} 15. Rab1 {[%clk 0:02:43]}  Bf5 {[%clk 0:02:32]} 16. b4 {[%clk 0:02:43]}  Bg6 {[%clk 0:02:28]} 17. b5 {[%clk 0:02:42]}  Nd5 {[%clk 0:02:27]} 18. bxc6 {[%clk 0:02:37]}  bxc6 {[%clk 0:02:28]} 19. Na4 {[%clk 0:02:35]}  Nb4 {[%clk 0:02:15]} 20. Qc4 {[%clk 0:02:22]}  a5 {[%clk 0:02:12]} 21. a3 {[%clk 0:02:13]}  Nd3 {[%clk 0:02:08]} 22. Nb6 {[%clk 0:01:54]}  Rab8 {[%clk 0:01:56]} 23. Qxc6 {[%clk 0:01:48]}  Qxa3 {[%clk 0:01:50]} 24. Ndc4 {[%clk 0:01:46]}  Qc3 {[%clk 0:01:33]} 25. Qa4 {[%clk 0:01:26]}  Re6 {[%clk 0:00:55]} 26. d5 {[%clk 0:01:23]}  Rf6 {[%clk 0:00:53]} 27. Nd7 {[%clk 0:01:14]}  Rxb1 {[%clk 0:00:52]} 28. Nxf6+ {[%clk 0:01:00]}  Qxf6 {[%clk 0:00:52]} 29. Rxb1 {[%clk 0:00:59]}  Qxf2+ {[%clk 0:00:52]} 30. Kh1 {[%clk 0:01:00]}  Ne1 {[%clk 0:00:37]} 31. Qa2 {[%clk 0:00:13]}  Qf1# {[%clk 0:00:33]} 0-1


[Site "https://www.chess.com"]

[Event "Titled Tuesday Blitz May 30 Late 2023"]
[White "Figorito, Nick"]
[Black "Odegov, Artem"]
[WhiteFideId "30923689"]
[BlackFideId "34183644"]
[WhiteElo "2327"]
[BlackElo "2300"]
[Result "1-0"]
[Round "07"]
[TimeControl "180+2"]
[Date "2023.05.31"]
[WhiteClock "0:02:18"]
[BlackClock "0:01:19"]

1. Nf3 {[%clk 0:03:00]}  b6 {[%clk 0:02:56]} 2. g3 {[%clk 0:03:01]}  Bb7 {[%clk 0:02:56]} 3. Bg2 {[%clk 0:03:01]}  e6 {[%clk 0:02:57]} 4. O-O {[%clk 0:03:02]}  Nf6 {[%clk 0:02:57]} 5. c4 {[%clk 0:03:02]}  d5 {[%clk 0:02:58]} 6. cxd5 {[%clk 0:03:02]}  exd5 {[%clk 0:02:58]} 7. d4 {[%clk 0:03:02]}  Be7 {[%clk 0:02:59]} 8. Nc3 {[%clk 0:03:02]}  O-O {[%clk 0:03:00]} 9. Bf4 {[%clk 0:03:03]}  Nbd7 {[%clk 0:02:59]} 10. Rc1 {[%clk 0:03:03]}  Rc8 {[%clk 0:02:59]} 11. Nb5 {[%clk 0:03:02]}  c6 {[%clk 0:03:00]} 12. Nxa7 {[%clk 0:03:00]}  Ra8 {[%clk 0:03:00]} 13. Nxc6 {[%clk 0:02:59]}  Bxc6 {[%clk 0:03:01]} 14. Rxc6 {[%clk 0:02:59]}  Rxa2 {[%clk 0:03:02]} 15. Qb3 {[%clk 0:02:54]}  Ra5 {[%clk 0:03:02]} 16. Rfc1 {[%clk 0:02:49]}  Qa8 {[%clk 0:02:48]} 17. Rc7 {[%clk 0:02:41]}  Ra1 {[%clk 0:02:44]} 18. Ne5 {[%clk 0:02:33]}  Bd6 {[%clk 0:02:32]} 19. Rxa1 {[%clk 0:02:21]}  Qxa1+ {[%clk 0:02:30]} 20. Rc1 {[%clk 0:02:22]}  Qa7 {[%clk 0:01:19]} 21. Nc6 {[%clk 0:02:20]}  Qc7 {[%clk 0:01:19]} 22. Ne7+ {[%clk 0:02:18]} 1-0


[Site "https://www.chess.com"]

[Event "Titled Tuesday Blitz May 30 Late 2023"]
[White "Ljukin, Sergei"]
[Black "Gomez Barrera, Javiera Belen"]
[WhiteFideId "14102200"]
[BlackFideId "3418723"]
[WhiteElo "2312"]
[BlackElo "2119"]
[Result "0-1"]
[Round "07"]
[TimeControl "180+2"]
[Date "2023.05.31"]
[WhiteClock "0:00:01"]
[BlackClock "0:00:01"]

1. e4 {[%clk 0:02:57]}  e5 {[%clk 0:02:57]} 2. Nf3 {[%clk 0:02:56]}  Nc6 {[%clk 0:02:57]} 3. Bb5 {[%clk 0:02:57]}  a6 {[%clk 0:02:56]} 4. Ba4 {[%clk 0:02:57]}  Nf6 {[%clk 0:02:57]} 5. Qe2 {[%clk 0:02:57]}  Bd6 {[%clk 0:02:51]} 6. c3 {[%clk 0:02:54]}  O-O {[%clk 0:02:51]} 7. O-O {[%clk 0:02:54]}  Re8 {[%clk 0:02:49]} 8. d3 {[%clk 0:02:53]}  Bf8 {[%clk 0:02:48]} 9. Bg5 {[%clk 0:02:52]}  h6 {[%clk 0:02:47]} 10. Bh4 {[%clk 0:02:52]}  g5 {[%clk 0:02:41]} 11. Bg3 {[%clk 0:02:51]}  d6 {[%clk 0:02:41]} 12. Nbd2 {[%clk 0:02:48]}  b5 {[%clk 0:02:39]} 13. Bb3 {[%clk 0:02:47]}  Ne7 {[%clk 0:02:38]} 14. d4 {[%clk 0:02:45]}  Ng6 {[%clk 0:02:37]} 15. dxe5 {[%clk 0:02:42]}  dxe5 {[%clk 0:02:38]} 16. Rfd1 {[%clk 0:02:41]}  Qe7 {[%clk 0:02:35]} 17. a4 {[%clk 0:02:17]}  Bd7 {[%clk 0:01:59]} 18. axb5 {[%clk 0:02:16]}  axb5 {[%clk 0:01:59]} 19. Nf1 {[%clk 0:02:05]}  Bc6 {[%clk 0:01:57]} 20. Bc2 {[%clk 0:01:55]}  Rxa1 {[%clk 0:01:22]} 21. Rxa1 {[%clk 0:01:54]}  Nf4 {[%clk 0:01:23]} 22. Qe1 {[%clk 0:01:53]}  Qc5 {[%clk 0:01:11]} 23. Ra6 {[%clk 0:01:36]}  Kg7 {[%clk 0:01:05]} 24. Ne3 {[%clk 0:01:30]}  Bb7 {[%clk 0:00:50]} 25. Nf5+ {[%clk 0:01:28]}  Kg6 {[%clk 0:00:50]} 26. Ra1 {[%clk 0:00:55]}  Qc4 {[%clk 0:00:47]} 27. Ne3 {[%clk 0:00:21]}  Qe2 {[%clk 0:00:41]} 28. Bxf4 {[%clk 0:00:18]}  Qxe1+ {[%clk 0:00:40]} 29. Rxe1 {[%clk 0:00:18]}  gxf4 {[%clk 0:00:36]} 30. Nf5 {[%clk 0:00:17]}  Bc5 {[%clk 0:00:30]} 31. Kf1 {[%clk 0:00:13]}  Rd8 {[%clk 0:00:28]} 32. Nxe5+ {[%clk 0:00:11]}  Kh7 {[%clk 0:00:27]} 33. Nf3 {[%clk 0:00:08]}  Ng4 {[%clk 0:00:23]} 34. h3 {[%clk 0:00:06]}  Nxf2 {[%clk 0:00:21]} 35. b4 {[%clk 0:00:04]}  Bb6 {[%clk 0:00:20]} 36. N3d4 {[%clk 0:00:02]}  Nh1 {[%clk 0:00:04]} 37. Kg1 {[%clk 0:00:02]}  Ng3 {[%clk 0:00:04]} 38. Nxg3 {[%clk 0:00:02]}  fxg3 {[%clk 0:00:05]} 39. e5+ {[%clk 0:00:03]}  Kg7 {[%clk 0:00:05]} 40. Rd1 {[%clk 0:00:04]}  Kg8 {[%clk 0:00:03]} 41. Kf1 {[%clk 0:00:04]}  Re8 {[%clk 0:00:02]} 42. Bf5 {[%clk 0:00:04]}  Rxe5 {[%clk 0:00:02]} 43. Bg4 {[%clk 0:00:04]}  Kg7 {[%clk 0:00:02]} 44. Bf3 {[%clk 0:00:05]}  Bxf3 {[%clk 0:00:01]} 45. Nxf3 {[%clk 0:00:05]}  Rf5 {[%clk 0:00:02]} 46. Rd7 {[%clk 0:00:05]}  Rf6 {[%clk 0:00:02]} 47. Rd5 {[%clk 0:00:05]}  Kg6 {[%clk 0:00:02]} 48. Rxb5 {[%clk 0:00:02]}  Kg7 {[%clk 0:00:02]} 49. Ke2 {[%clk 0:00:02]}  Rc6 {[%clk 0:00:02]} 50. Kd2 {[%clk 0:00:02]}  Rd6+ {[%clk 0:00:03]} 51. Kc2 {[%clk 0:00:03]}  Re6 {[%clk 0:00:03]} 52. Re5 {[%clk 0:00:02]}  Rd6 {[%clk 0:00:02]} 53. Rf5 {[%clk 0:00:02]}  Re6 {[%clk 0:00:02]} 54. Re5 {[%clk 0:00:02]}  Rf6 {[%clk 0:00:02]} 55. Re4 {[%clk 0:00:03]}  Bf2 {[%clk 0:00:02]} 56. Rg4+ {[%clk 0:00:02]}  Kf8 {[%clk 0:00:03]} 57. Ne5 {[%clk 0:00:02]}  Re6 {[%clk 0:00:02]} 58. Nd7+ {[%clk 0:00:02]}  Ke7 {[%clk 0:00:01]} 59. Nc5 {[%clk 0:00:02]}  Re2+ {[%clk 0:00:02]} 60. Kd3 {[%clk 0:00:01]}  Re3+ {[%clk 0:00:03]} 61. Kc4 {[%clk 0:00:01]}  Re2 {[%clk 0:00:04]} 62. Nd3 {[%clk 0:00:01]}  f5 {[%clk 0:00:01]} 0-1


[Site "https://www.chess.com"]